bitfinex/quotes_ETHUSD_20251201
["timestamp","ask_amount","ask_price","bid_price","bid_amount"]
[1764554600052,0.4791,2854.4,2853.4,12.08107355]
[1764554600053,3.98248545,2854.4,2854.0,0.223]
[1764554600247,3.98248545,2854.4,2853.5,0.1233]
[1764554600248,0.4762,2854.3,2853.5,0.1233]
[1764554600447,0.4762,2854.6,2853.5,4.32503861]
[1764554600647,0.4762,2854.6,2853.5,3.97403861]
[1764554600823,0.4762,2854.6,2853.6,0.223]
[1764554601018,0.4762,2854.6,2853.7,0.03504222]
[1764554601246,0.6752,2854.9,2853.8,0.351]
[1764554601551,0.6752,2854.9,2853.7,0.4743]
[1764554601552,3.70181192,2854.9,2853.7,0.4743]
[1764554601749,0.4762,2854.8,2853.8,0.405504]
[1764554602052,3.97908105,2854.8,2854.0,0.405504]
[1764554602349,3.97908105,2854.8,2854.1,0.7413458]
[1764554602655,0.4762,2854.8,2854.1,0.7413458]
[1764554602949,0.4762,2854.8,2854.2,0.03503608]
[1764554605156,0.4794,2854.8,2854.4,0.03503363]
[1764554605820,0.199,2854.9,2854.4,0.03503363]
[1764554606024,0.4794,2854.8,2854.4,0.03503363]
[1764554606226,0.002,2854.9,2854.4,3.90539354]
[1764554606632,0.002,2854.9,2854.4,7.40875676]
[1764554606838,0.002,2854.9,2854.4,7.53205676]
[1764554607033,0.002,2854.9,2854.4,4.02869354]
[1764554607258,0.4794,2854.8,2854.5,0.43796935]
[1764554607551,0.1945,2854.9,2854.5,7.44445033]
[1764554607759,0.1945,2854.9,2854.5,3.94120984]
[1764554607925,0.002,2854.9,2854.7,3.50299506]
[1764554608128,0.002,2854.9,2854.6,3.50310044]
[1764554608326,0.002,2854.9,2854.7,0.03502995]
[1764554608555,0.002,2854.9,2854.8,0.1233]
[1764554608939,0.002,2854.9,2854.6,7.77295988]
[1764554609261,0.002,2854.9,2854.6,4.26984211]
[1764554610940,0.1945,2854.9,2854.6,4.26984211]
[1764554611261,0.4794,2854.8,2854.0,0.405504]
[1764554611459,0.4794,2854.8,2854.1,3.72673147]
[1764554611460,0.4656,2854.6,2854.1,3.72673147]
[1764554611758,0.4656,2854.6,2853.9,0.001]
[1764554611759,0.4656,2854.6,2853.9,3.50497329]
[1764554611958,0.4656,2854.6,2853.9,4.07847434]
[1764554612133,0.4656,2854.6,2853.9,7.58245135]
[1764554612333,0.945,2854.6,2853.9,7.58245135]
[1764554613068,0.4656,2854.0,2853.9,0.35149733]
[1764554613233,0.4656,2854.0,2853.9,0.001]
[1764554613431,0.92009411,2854.9,2853.9,0.1243]
[1764554613740,0.002,2857.7,2857.0,8.78234911]
[1764554613940,0.002,2857.7,2857.2,9.37904911]
[1764554614151,0.002,2857.7,2857.2,17.2057316]
[1764554614355,0.002,2857.7,2857.2,9.51920106]
[1764554614574,0.002,2857.7,2857.2,13.24513106]
[1764554614732,0.002,2857.7,2857.2,14.77427673]
[1764554614933,0.002,2857.7,2857.2,16.46829449]
[1764554615134,0.002,2857.7,2857.2,15.37279449]
[1764554615330,0.002,2857.7,2857.2,11.88186237]
[1764554616132,0.002,2857.7,2857.2,12.82458622]
[1764554617038,0.002,2857.7,2857.2,12.10786237]
[1764554617237,0.002,2857.7,2857.2,8.60793237]
[1764554617451,0.4794,2857.6,2857.2,8.60793237]
[1764554617648,0.4794,2857.6,2857.2,12.10786237]
[1764554617851,0.4794,2857.6,2857.2,8.38193237]
[1764554618164,0.947,2857.3,2857.0,8.056755]
[1764554618671,0.947,2857.3,2857.0,11.5569179]
[1764554618853,0.947,2857.3,2857.1,8.056755]
[1764554619267,0.4676,2857.3,2857.1,8.056755]
[1764554619568,0.5208,2857.2,2857.1,8.056755]
[1764554619791,0.5208,2857.2,2856.5,0.4794]
[1764554619792,0.5208,2857.2,2856.5,8.282755]
[1764554619936,0.4614,2856.9,2856.7,4.984372]
[1764554620136,0.4614,2856.9,2856.5,8.056755]
[1764554620372,0.4614,2856.9,2856.7,8.056755]
[1764554620373,0.0456,2856.8,2856.7,8.056755]
[1764554620683,0.0456,2856.8,2856.3,8.056755]
[1764554620684,0.4656,2856.5,2856.3,8.056755]
[1764554620971,0.4656,2856.5,2856.2,8.056755]
[1764554621172,0.4656,2856.5,2856.3,8.056755]
[1764554621670,0.525,2856.8,2856.3,8.056755]
[1764554622342,0.92752699,2856.8,2856.3,8.056755]
[1764554622577,0.43060215,2858.4,2856.7,0.4752]
[1764554622785,10.0398099,2862.9,2859.1,8.056755]
[1764554622786,0.6719,2860.6,2859.1,8.056755]
[1764554622991,0.6719,2860.6,2858.7,0.90835277]
[1764554622992,0.6719,2860.6,2859.5,0.72559411]
[1764554623281,0.6719,2860.6,2860.1,8.056755]
[1764554623588,0.6719,2860.6,2860.3,8.056755]
[1764554623589,0.1925,2860.6,2860.3,8.056755]
[1764554623780,0.1925,2860.8,2860.3,8.056755]
[1764554623944,0.4794,2860.7,2860.3,8.056755]
[1764554624270,0.4794,2860.7,2859.6,0.72559411]
[1764554624569,0.4794,2860.7,2860.0,8.056755]
[1764554624772,0.4794,2860.7,2860.2,8.056755]
[1764554625555,0.83007997,2860.7,2860.2,8.056755]
[1764554625970,0.4794,2860.6,2860.2,0.227]
[1764554626186,0.4794,2860.6,2860.3,8.056755]
[1764554626392,0.6719,2860.8,2860.2,8.056755]
[1764554626587,1.02257997,2860.8,2860.2,8.056755]
[1764554627209,1.02257997,2860.8,2860.3,0.227]
[1764554627401,1.02257997,2860.8,2860.4,8.056755]
[1764554627701,0.35067997,2860.5,2860.2,0.227]
[1764554627997,0.35067997,2860.5,2859.9,3.49653709]
[1764554627998,0.35067997,2860.5,2860.3,8.056755]
[1764554628203,0.83007997,2860.5,2860.3,8.056755]
[1764554628366,0.35067997,2860.6,2860.3,8.056755]
[1764554628769,0.4794,2860.5,2860.3,8.056755]
[1764554629389,0.4794,2860.5,2860.2,8.056755]
[1764554629594,0.4794,2860.5,2860.3,8.056755]
[1764554629824,0.4794,2860.5,2859.8,8.056755]
[1764554629998,0.83007997,2860.5,2860.2,8.056755]
[1764554630162,0.83007997,2860.5,2859.9,8.056755]
[1764554630365,0.83007997,2860.4,2859.6,8.056755]
[1764554630566,0.35067997,2860.1,2859.8,8.056755]
[1764554631194,0.507,2859.9,2859.8,8.056755]
[1764554631398,0.6581,2859.9,2859.8,0.227]
[1764554631573,1.1375,2859.9,2859.8,8.283755]
[1764554631894,1.1375,2859.9,2859.8,7.528055]
[1764554632194,1.1375,2859.9,2859.7,0.227]
[1764554632395,0.5208,2859.8,2859.7,8.056755]
[1764554632593,0.5208,2859.8,2859.7,8.283755]
[1764554632800,3.49607204,2860.4,2859.7,8.283755]
[1764554632801,0.1902,2863.2,2861.8,8.056755]
[1764554633020,0.4549,2862.6,2861.5,8.57655545]
[1764554633297,0.4549,2862.6,2862.0,0.405504]
[1764554633505,0.4549,2862.6,2861.7,8.056755]
[1764554633713,0.4549,2862.6,2861.8,0.405504]
[1764554634018,0.4549,2862.6,2861.2,0.72559411]
[1764554634019,0.80557997,2862.6,2861.9,0.228]
[1764554634197,0.4549,2862.6,2861.6,8.056755]
[1764554634398,0.35067997,2862.3,2861.6,8.056755]
[1764554634596,0.35067997,2862.3,2861.5,0.228]
[1764554634597,0.35067997,2862.3,2861.7,8.056755]
[1764554634897,0.80557997,2862.3,2861.6,8.056755]
[1764554635378,0.4549,2862.3,2861.6,8.056755]
[1764554635580,0.4549,2862.3,2861.8,8.056755]
[1764554636001,0.4549,2862.3,2861.4,3.49477499]
[1764554636002,0.4549,2862.3,2861.9,0.228]
[1764554636313,0.4549,2862.3,2862.0,8.056755]
[1764554636475,3.9486911,2862.3,2862.0,8.056755]
[1764554636678,0.35067997,2861.9,2861.8,8.056755]
[1764554637108,0.99577997,2861.9,2861.8,8.056755]
[1764554637514,0.6451,2861.9,2861.5,0.228]
[1764554637811,0.6451,2861.9,2859.8,9.40493095]
[1764554637812,0.35067997,2861.6,2860.5,8.056755]
[1764554638010,0.4549,2861.8,2860.5,8.056755]
[1764554638216,0.35067997,2861.4,2860.0,3.49650349]
[1764554638382,0.35067997,2861.4,2860.2,8.056755]
[1764554638581,0.4549,2861.7,2860.2,8.056755]
[1764554638582,3.49540354,2860.9,2860.2,8.056755]
[1764554638887,3.49469528,2861.5,2860.2,8.056755]
[1764554638888,0.69393928,2861.7,2860.3,0.3876]
[1764554639193,0.4549,2863.4,2862.0,8.056755]
[1764554639390,0.1902,2863.6,2861.6,8.57655545]
[1764554639391,0.1902,2862.9,2862.4,0.405504]
[1764554639606,0.1902,2862.9,2862.3,8.056755]
[1764554639908,0.1902,2862.9,2862.6,8.056755]
[1764554640121,3.94712978,2863.5,2862.6,8.056755]
[1764554640276,0.76294647,2863.4,2862.8,4.984372]
[1764554640483,0.76294647,2863.4,2863.0,8.056755]
[1764554640683,3.68233804,2863.6,2863.2,8.056755]
[1764554641015,0.1902,2864.9,2863.6,11.38381]
[1764554641216,0.6451,2864.9,2863.7,0.634504]
[1764554641516,0.6451,2864.9,2863.8,8.056755]
[1764554641752,0.6451,2864.9,2864.0,8.056755]
[1764554642024,0.4549,2864.8,2864.0,8.056755]
[1764554642239,0.21504495,2865.4,2864.0,8.444355]
[1764554642386,0.21504495,2865.4,2864.3,0.405504]
[1764554642582,0.21504495,2865.4,2864.9,0.405504]
[1764554642810,0.21504495,2865.4,2864.7,0.405504]
[1764554642811,0.16504495,2865.4,2864.6,0.405504]
[1764554643121,0.002,2864.9,2864.7,0.405504]
[1764554643584,0.002,2864.9,2864.8,8.056755]
[1764554644082,0.002,2864.9,2864.8,8.462259]
[1764554644288,0.002,2864.9,2864.4,8.056755]
[1764554644511,0.002,2864.9,2863.8,0.3876]
[1764554644512,0.1922,2864.9,2864.6,8.056755]
[1764554644891,0.4549,2864.8,2864.2,8.056755]
[1764554645098,0.80557996,2864.8,2863.6,8.056755]
[1764554645321,1.53117407,2864.8,2863.6,8.056755]
[1764554645483,0.4549,2864.7,2863.6,8.056755]
[1764554645849,14.52262933,2864.9,2863.7,0.72559411]
[1764554645850,0.56046073,2864.9,2863.7,0.72559411]
[1764554645986,3.49252373,2864.9,2864.0,8.056755]
[1764554646182,3.68272642,2864.9,2864.0,8.056755]
[1764554646414,0.4549,2864.8,2863.9,0.405504]
[1764554646612,0.4549,2864.8,2864.0,8.056755]
[1764554646822,6.98153384,2864.7,2864.0,8.056755]
[1764554647015,6.98153384,2864.7,2863.3,0.72559411]
[1764554647016,1.81991745,2864.6,2863.7,0.23]
[1764554647194,1.81991745,2864.6,2863.8,8.056755]
[1764554647391,1.09432334,2864.6,2863.9,0.405504]
[1764554647596,0.72559411,2864.6,2864.2,8.056755]
[1764554648122,0.4549,2864.5,2863.5,8.056755]
[1764554648325,0.4549,2864.5,2863.8,8.056755]
[1764554648642,0.4549,2864.5,2863.2,8.056755]
[1764554648924,6.9829964,2864.1,2863.4,8.056755]
[1764554649225,0.73336764,2864.0,2863.3,8.056755]
[1764554649891,0.1902,2863.9,2863.3,8.056755]
[1764554650127,0.1902,2863.9,2863.1,0.23]
[1764554650128,0.35067996,2863.8,2863.1,0.23]
[1764554650425,0.35067996,2863.8,2863.2,8.056755]
[1764554650595,0.6451,2863.9,2863.2,8.056755]
[1764554650796,3.49186395,2863.8,2863.2,8.056755]
[1764554651001,7.87800953,2863.8,2863.2,8.056755]
[1764554651190,0.4549,2863.7,2862.6,8.056755]
[1764554651386,0.4549,2863.7,2862.8,8.056755]
[1764554651585,0.4549,2863.7,2863.0,8.056755]
[1764554651789,3.49121862,2864.4,2862.7,0.23]
[1764554651790,0.4549,2864.2,2863.2,8.056755]
[1764554652019,0.4549,2864.2,2863.4,8.056755]
[1764554652020,0.72559411,2864.0,2863.4,8.056755]
[1764554652224,0.35067996,2863.9,2863.3,8.056755]
[1764554652395,0.1902,2863.9,2863.3,8.056755]
[1764554652597,0.6451,2863.9,2863.0,8.056755]
[1764554652790,0.6451,2863.9,2863.2,8.056755]
[1764554652791,6.9837279,2863.8,2863.2,8.056755]
[1764554653018,0.76288279,2863.7,2863.4,8.056755]
[1764554653225,0.76288279,2863.7,2863.0,8.286755]
[1764554653517,0.76288279,2863.7,2863.2,8.056755]
[1764554653735,1.21778279,2863.7,2863.1,8.056755]
[1764554653915,0.4549,2863.6,2863.0,8.056755]
[1764554654089,1.56192701,2863.6,2862.9,8.056755]
[1764554654488,1.56192701,2863.6,2863.0,0.03492839]
[1764554654724,1.10702701,2863.6,2863.1,8.056755]
[1764554655031,6.98445956,2863.5,2862.9,8.056755]
[1764554655327,3.49222978,2863.5,2862.8,0.635504]
[1764554655621,6.98445956,2863.5,2862.9,8.056755]
[1764554655823,3.49222978,2863.5,2862.9,8.056755]
[1764554655995,6.98445956,2863.5,2862.9,8.056755]
[1764554656197,0.4549,2863.4,2862.9,8.056755]
[1764554656397,0.4549,2863.4,2861.7,7.56655945]
[1764554656398,0.35067996,2863.1,2862.6,8.056755]
[1764554656600,0.58067996,2863.1,2862.1,8.056755]
[1764554656831,3.49296168,2862.9,2862.1,8.056755]
[1764554657130,4.29510661,2862.9,2862.1,8.056755]
[1764554657299,0.1902,2862.8,2862.1,8.056755]
[1764554657491,0.1902,2862.8,2862.2,0.03493815]
[1764554657492,0.99577996,2862.8,2862.2,0.03493815]
[1764554657721,0.6451,2862.8,2862.1,8.056755]
[1764554657893,0.6451,2862.8,2862.3,8.056755]
[1764554658091,0.6451,2862.8,2862.5,8.056755]
[1764554658296,0.4549,2862.7,2861.9,8.056755]
[1764554658899,3.49320571,2862.7,2862.0,8.0916956]
[1764554659099,3.49320571,2862.7,2862.0,8.056755]
[1764554659300,3.49320571,2862.7,2862.2,8.056755]
[1764554659301,7.44133446,2862.7,2862.2,8.056755]
[1764554659512,7.44133446,2862.7,2861.8,0.1915]
[1764554659513,7.67133446,2862.7,2861.9,8.056755]
[1764554659712,0.78615345,2862.6,2862.1,8.056755]
[1764554659936,0.78615345,2862.6,2862.3,8.056755]
[1764554660109,0.78615345,2862.6,2861.9,8.056755]
[1764554660307,0.78615345,2862.6,2862.1,8.056755]
[1764554660507,0.78615345,2862.6,2861.9,8.056755]
[1764554660707,1.30064879,2862.5,2861.9,8.056755]
[1764554660942,0.72559411,2862.9,2861.1,0.3878]
[1764554660943,0.405504,2863.7,2862.2,8.056755]
[1764554661109,0.002,2864.9,2864.7,0.72559411]
[1764554661313,0.002,2864.9,2864.8,9.982259]
[1764554661631,0.16704495,2865.4,2864.9,8.056755]
[1764554662025,0.16704495,2865.4,2865.1,8.462259]
[1764554662205,0.16704495,2865.4,2865.1,9.18785311]
[1764554662940,0.16704495,2865.4,2865.1,12.67813268]
[1764554663138,0.16704495,2865.4,2865.1,13.25913268]
[1764554663442,0.16704495,2865.4,2865.1,14.93408773]
[1764554664145,0.16704495,2865.4,2865.1,9.18785311]
[1764554664308,0.16704495,2865.4,2865.1,13.25913268]
[1764554664513,0.16704495,2865.4,2865.1,12.67813268]
[1764554664852,0.16704495,2865.4,2865.1,9.18785311]
[1764554665205,0.16704495,2865.4,2865.1,12.67813268]
[1764554665412,0.16704495,2865.4,2865.1,9.18785311]
[1764554665936,0.16704495,2865.4,2865.1,8.056755]
[1764554666137,0.16704495,2865.4,2865.0,0.405504]
[1764554666309,0.16704495,2865.4,2865.1,8.462259]
[1764554666852,0.16704495,2865.4,2865.1,10.2365881]
[1764554667014,0.16704495,2865.4,2865.1,14.80346178]
[1764554667208,0.16704495,2865.4,2865.1,14.45246178]
[1764554667524,0.16704495,2865.4,2865.1,14.80346178]
[1764554667928,0.16704495,2865.4,2865.1,14.57346178]
[1764554668239,0.16704495,2865.4,2865.1,14.80346178]
[1764554669134,0.16704495,2865.4,2865.1,14.57346178]
[1764554669341,0.16704495,2865.4,2865.1,14.80346178]
[1764554669744,0.16704495,2865.4,2865.1,13.25913268]
[1764554669939,0.4778,2866.1,2865.1,13.25913268]
[1764554669940,0.09999999,2868.8,2865.4,9.36694908]
[1764554670148,0.1882,2869.2,2868.4,0.405504]
[1764554670353,0.1882,2868.9,2867.2,1.98983219]
[1764554670535,0.35067996,2868.8,2867.4,8.407755]
[1764554670845,0.4778,2868.8,2867.9,8.056755]
[1764554671047,6.97179906,2868.7,2867.1,0.405504]
[1764554671253,6.97179906,2868.7,2867.3,8.056755]
[1764554671254,0.35067996,2868.3,2867.3,8.056755]
[1764554671426,0.231,2868.6,2867.2,8.056755]
[1764554671427,1.43439411,2868.6,2867.2,8.056755]
[1764554671631,0.35067996,2868.2,2867.2,8.056755]
[1764554672046,0.4778,2868.1,2867.2,8.056755]
[1764554672247,0.4778,2868.1,2867.2,8.287755]
[1764554672451,0.4778,2868.1,2867.5,8.056755]
[1764554672452,0.35067996,2867.9,2867.5,8.056755]
[1764554672746,0.1882,2867.6,2867.5,8.056755]
[1764554672954,6.97471664,2867.5,2866.6,0.231]
[1764554673255,3.96515832,2867.5,2866.7,8.056755]
[1764554673417,0.35067996,2867.3,2866.7,8.056755]
[1764554673841,0.4778,2867.3,2866.7,8.056755]
[1764554674421,0.4778,2867.3,2866.5,8.056755]
[1764554674622,0.35067996,2867.2,2866.4,8.056755]
[1764554674823,0.4778,2867.3,2866.4,8.056755]
[1764554675034,3.48784486,2867.1,2866.4,8.056755]
[1764554675231,3.48784486,2867.1,2865.9,0.351]
[1764554675433,3.48784486,2867.1,2865.6,16.897533]
[1764554675434,0.4778,2867.0,2866.1,8.056755]
[1764554675632,0.4778,2867.0,2866.2,0.231]
[1764554675848,0.4778,2867.0,2865.6,3.48966864]
[1764554675849,0.35067996,2866.8,2865.6,15.057801]
[1764554676053,0.35067996,2866.8,2865.8,8.056755]
[1764554676348,0.1882,2866.9,2865.9,8.056755]
[1764554676547,0.82847996,2866.8,2865.9,0.405504]
[1764554676856,0.1882,2869.8,2867.8,0.405504]
[1764554677040,7.44790362,2869.4,2867.9,8.288755]
[1764554677245,0.35067997,2869.1,2868.1,0.405504]
[1764554677441,0.35067997,2869.1,2868.2,2.973952]
[1764554677643,3.48517059,2869.3,2868.2,0.637504]
[1764554677830,3.48517059,2869.3,2868.3,8.056755]
[1764554677831,0.4778,2869.2,2868.3,8.056755]
[1764554678036,0.4778,2869.2,2868.4,0.232]
[1764554678240,0.35067997,2869.1,2868.5,8.056755]
[1764554678737,0.35067997,2869.1,2868.4,8.056755]
[1764554678738,0.4778,2869.0,2868.4,8.056755]
[1764554679136,0.50393673,2869.0,2868.3,8.056755]
[1764554679336,0.4202,2869.8,2868.5,8.056755]
[1764554679533,0.4778,2869.5,2868.4,0.405504]
[1764554679733,0.4778,2869.5,2868.7,8.056755]
[1764554679938,0.4778,2869.5,2868.6,8.056755]
[1764554680134,0.002,2869.0,2868.6,8.056755]
[1764554680339,0.002,2869.0,2868.5,0.232]
[1764554680340,0.002,2869.0,2868.8,8.056755]
[1764554680662,0.002,2869.0,2868.5,0.232]
[1764554680844,0.002,2869.0,2868.6,8.056755]
[1764554680845,0.4798,2869.0,2868.6,8.056755]
[1764554681159,0.72559411,2868.8,2868.4,8.056755]
[1764554681327,4.69094485,2869.0,2868.4,8.056755]
[1764554681533,8.17649559,2869.0,2868.4,0.232]
[1764554681862,7.69869559,2869.0,2868.5,8.056755]
[1764554682062,0.4778,2868.9,2868.3,0.232]
[1764554682231,0.4778,2868.9,2868.4,8.056755]
[1764554682627,0.002,2869.0,2868.7,0.405504]
[1764554682870,0.002,2869.0,2868.9,8.407755]
[1764554683279,0.002,2869.0,2868.9,11.94791552]
[1764554683556,0.002,2869.0,2868.9,8.462259]
[1764554683769,0.002,2869.0,2868.9,9.045259]
[1764554683956,0.002,2869.0,2868.8,0.405504]
[1764554684158,0.002,2869.0,2868.9,8.407755]
[1764554684366,0.002,2869.0,2868.9,9.7177849]
[1764554684566,0.002,2869.0,2868.9,9.5987849]
[1764554684768,0.002,2869.0,2868.9,8.462259]
[1764554684973,0.002,2869.0,2868.9,9.045259]
[1764554685563,0.002,2869.0,2868.9,8.462259]
[1764554685776,0.002,2869.0,2868.9,8.694259]
[1764554686472,0.002,2869.3,2868.9,8.694259]
[1764554686672,0.666,2872.9,2871.2,8.056755]
[1764554686975,3.66904223,2872.9,2871.8,8.056755]
[1764554687160,0.4778,2872.8,2871.8,8.056755]
[1764554687473,0.1882,2872.9,2872.1,0.405504]
[1764554687659,0.1882,2873.0,2872.4,8.056755]
[1764554687972,0.1882,2873.0,2871.9,0.405504]
[1764554687973,0.4778,2872.9,2871.9,0.405504]
[1764554688173,0.4778,2872.9,2872.0,8.056755]
[1764554688471,0.41466822,2872.8,2872.0,8.056755]
[1764554688839,0.89246822,2872.8,2872.0,8.056755]
[1764554689268,0.4778,2872.7,2871.3,8.056755]
[1764554689468,0.4778,2872.7,2871.7,0.756504]
[1764554689778,0.4778,2872.7,2871.6,8.056755]
[1764554689958,0.84149279,2872.6,2871.6,8.056755]
[1764554690159,0.84149279,2872.6,2871.8,8.056755]
[1764554690160,0.60949279,2872.6,2871.8,8.056755]
[1764554690359,0.4778,2872.7,2871.5,0.638504]
[1764554690553,0.58367997,2872.8,2871.8,8.056755]
[1764554690745,0.4778,2872.7,2871.8,8.056755]
[1764554691448,3.95896576,2872.7,2871.8,8.056755]
[1764554691944,3.48105009,2872.7,2872.0,8.056755]
[1764554692146,3.48105009,2872.7,2871.5,0.233]
[1764554692147,0.4778,2872.6,2871.8,8.056755]
[1764554692346,0.82847997,2872.6,2871.0,0.72559411]
[1764554692545,0.232,2872.5,2871.1,8.056755]
[1764554692847,0.232,2872.5,2870.6,0.232]
[1764554692848,0.458,2872.5,2870.6,0.232]
[1764554693058,0.35067997,2872.2,2870.8,8.056755]
[1764554693270,10.44531873,2872.1,2870.8,8.056755]
[1764554693471,0.72559411,2872.0,2869.7,8.056755]
[1764554693775,0.35067997,2871.7,2870.3,8.056755]
[1764554693950,0.233,2871.6,2870.3,8.056755]
[1764554694158,0.35067997,2871.4,2870.4,0.03483835]
[1764554694353,0.691,2871.6,2870.1,8.056755]
[1764554694563,0.35067997,2870.8,2869.6,8.056755]
[1764554694769,0.233,2870.7,2869.7,8.056755]
[1764554694964,0.8747,2870.7,2869.9,8.056755]
[1764554695168,0.8747,2870.7,2870.1,8.056755]
[1764554695376,7.42518456,2870.6,2869.7,8.056755]
[1764554695577,3.94159228,2870.6,2869.7,8.056755]
[1764554695747,0.1837,2870.7,2869.9,8.056755]
[1764554695951,0.1837,2870.7,2870.1,8.056755]
[1764554695952,3.66717093,2870.7,2870.1,8.056755]
[1764554696268,0.458,2870.6,2869.2,0.72559411]
[1764554696478,0.458,2870.6,2869.4,8.056755]
[1764554696681,0.80867997,2870.6,2869.3,8.407755]
[1764554696877,0.458,2870.6,2869.5,0.405504]
[1764554697078,0.458,2870.5,2869.6,8.056755]
[1764554697282,0.458,2870.5,2869.1,3.4854048]
[1764554697283,6.96767,2870.4,2869.1,8.056755]
[1764554697457,0.1837,2869.7,2868.5,0.351]
[1764554697656,0.1837,2868.6,2867.0,18.091218]
[1764554697853,0.1837,2868.6,2867.8,8.056755]
[1764554698179,0.458,2872.2,2871.0,8.056755]
[1764554698479,0.1837,2873.1,2871.2,8.056755]
[1764554698480,0.6417,2872.0,2871.2,8.056755]
[1764554698645,0.6417,2872.0,2871.0,8.056755]
[1764554698853,0.80867996,2871.9,2870.9,8.407755]
[1764554699050,0.80867996,2871.9,2871.0,8.056755]
[1764554699276,0.458,2871.8,2871.0,8.056755]
[1764554699474,0.458,2871.8,2871.2,8.056755]
[1764554699646,0.458,2871.8,2871.4,8.056755]
[1764554699647,4.35253439,2871.8,2871.4,8.056755]
[1764554699849,4.35253439,2871.8,2870.9,0.234]
[1764554699850,0.87037167,2871.8,2871.0,8.056755]
[1764554700052,0.458,2871.7,2871.2,8.056755]
[1764554700248,0.1837,2872.0,2871.0,8.056755]
[1764554700477,3.66566293,2872.0,2871.0,8.056755]
[1764554700681,4.12366293,2872.0,2870.6,8.056755]
[1764554700854,4.12366293,2872.0,2870.9,8.056755]
[1764554700855,0.458,2871.9,2870.9,8.056755]
[1764554701055,0.458,2871.9,2871.1,8.056755]
[1764554701368,3.8945676,2871.8,2870.9,8.056755]
[1764554701573,0.1837,2870.9,2870.2,8.056755]
[1764554701757,0.234,2871.5,2870.4,8.056755]
[1764554702171,0.458,2871.4,2870.4,8.056755]
[1764554702590,0.458,2871.4,2870.2,8.056755]
[1764554702775,0.458,2871.4,2870.5,8.056755]
[1764554702974,0.80867996,2871.4,2870.5,8.056755]
[1764554703376,0.458,2871.3,2870.4,0.234]
[1764554703568,0.458,2871.3,2870.5,8.056755]
[1764554703769,3.94080248,2871.3,2870.2,8.056755]
[1764554703989,8.18934941,2871.3,2870.3,8.056755]
[1764554704189,0.458,2871.2,2870.3,8.056755]
[1764554704493,0.458,2871.2,2870.4,8.056755]
[1764554704677,0.458,2871.2,2870.3,8.056755]
[1764554704678,0.35067996,2871.1,2870.3,8.056755]
[1764554704881,0.35067996,2871.1,2870.2,8.056755]
[1764554705192,0.96372269,2871.1,2870.4,8.056755]
[1764554705394,0.96372269,2871.1,2870.6,8.056755]
[1764554705692,1.75133267,2873.9,2870.1,3.71910087]
[1764554705693,0.458,2871.7,2870.8,8.056755]
[1764554705877,0.458,2871.7,2870.9,8.056755]
[1764554706191,0.458,2871.7,2870.8,4.554103]
[1764554706396,0.458,2871.7,2870.7,0.234]
[1764554706594,0.1837,2872.0,2871.2,8.056755]
[1764554706785,1.03163834,2872.0,2871.2,8.056755]
[1764554706980,4.47435489,2872.0,2870.8,8.290755]
[1764554707179,0.6417,2872.0,2871.0,8.056755]
[1764554707390,4.12361681,2872.0,2871.0,8.056755]
[1764554707690,0.458,2871.9,2870.9,0.234]
[1764554707892,0.458,2871.9,2871.1,8.056755]
[1764554708093,0.458,2871.9,2871.0,0.03483106]
[1764554708094,0.41236168,2871.8,2870.9,8.056755]
[1764554708262,0.41236168,2871.8,2870.8,0.639504]
[1764554708462,0.458,2871.7,2870.6,8.056755]
[1764554708680,0.458,2871.7,2870.9,1.001393]
[1764554708888,0.458,2871.7,2870.6,0.234]
[1764554708889,0.35067996,2871.5,2871.0,0.03483106]
[1764554709099,12.0477719,2877.9,2870.9,8.056755]
[1764554709418,12.0477719,2877.9,2873.9,0.72559411]
[1764554709419,0.18173704,2875.0,2873.9,0.72559411]
[1764554709620,3.93545661,2875.7,2872.4,0.05]
[1764554709621,0.458,2875.3,2874.0,0.235]
[1764554709828,0.35067996,2874.9,2874.1,8.056755]
[1764554710012,0.35067996,2875.2,2874.3,8.056755]
[1764554710187,0.458,2875.5,2874.3,8.056755]
[1764554710382,0.35067996,2875.3,2873.7,0.96059411]
[1764554710705,0.35067996,2875.0,2874.0,8.056755]
[1764554711106,0.458,2874.9,2874.0,8.056755]
[1764554711424,0.458,2874.9,2873.7,0.96059411]
[1764554711425,3.47862385,2874.7,2873.7,0.405504]
[1764554711631,3.47862385,2874.7,2873.8,8.056755]
[1764554711836,0.35067996,2874.5,2873.8,8.056755]
[1764554712016,0.458,2875.1,2874.0,8.056755]
[1764554712330,0.58567996,2875.0,2873.9,8.056755]
[1764554712528,0.58567996,2875.0,2873.8,0.72559411]
[1764554712529,0.35067996,2874.7,2873.8,0.405504]
[1764554712824,0.458,2874.9,2873.8,0.405504]
[1764554713027,0.458,2874.9,2873.9,8.056755]
[1764554713522,3.47850285,2874.8,2873.9,8.056755]
[1764554713688,0.39365029,2874.7,2873.4,0.235]
[1764554713894,0.85165029,2874.7,2873.4,0.405504]
[1764554714196,0.85165029,2874.7,2873.5,8.056755]
[1764554714395,0.35067996,2874.1,2873.2,8.056755]
[1764554714599,0.35067996,2874.1,2873.3,8.056755]
[1764554714792,0.458,2874.7,2873.6,8.056755]
[1764554714984,0.458,2875.0,2873.9,0.405504]
[1764554715187,0.458,2875.0,2874.0,8.056755]
[1764554715503,0.458,2875.0,2873.5,8.056755]
[1764554715504,0.35067996,2874.7,2873.5,8.056755]
[1764554715694,0.35067996,2874.7,2873.7,8.056755]
[1764554715900,0.38292038,2874.6,2873.7,8.056755]
[1764554716096,0.38292038,2874.6,2873.9,8.056755]
[1764554716306,0.84092038,2874.6,2873.7,0.405504]
[1764554716619,0.84092038,2874.6,2873.6,8.056755]